bitfinex/quotes_SOLUSD_20251120
["timestamp","ask_amount","ask_price","bid_price","bid_amount"]
[1763638004023,9.78882769,141.85,141.84,1.68]
[1763638004513,16.83852807,141.85,141.84,1.68]
[1763638005051,0.7,141.86,141.84,1.68]
[1763638005346,7.74935668,141.86,141.84,1.68]
[1763638005511,7.04935668,141.86,141.84,1.68]
[1763638005712,7.76935668,141.86,141.84,1.68]
[1763638006921,9.78882769,141.86,141.84,1.68]
[1763638007122,10.50882769,141.86,141.84,1.68]
[1763638007540,9.78882769,141.86,141.84,1.68]
[1763638008118,10.50882769,141.86,141.84,1.68]
[1763638010144,17.55813487,141.86,141.84,1.68]
[1763638011214,0.67,141.85,141.84,1.68]
[1763638011420,17.50813487,141.86,141.84,1.68]
[1763638011832,10.45882769,141.86,141.84,1.68]
[1763638012118,17.50809026,141.86,141.84,1.68]
[1763638012627,17.50809026,141.86,141.84,4.35708726]
[1763638013231,17.50809026,141.86,141.84,1.68]
[1763638017251,9.78882769,141.86,141.84,1.68]
[1763638017420,10.45882769,141.88,141.85,2.67708726]
[1763638017824,0.67,141.87,141.85,2.67708726]
[1763638018640,7.71882637,141.87,141.84,2.34]
[1763638018843,7.71882637,141.87,141.85,2.67708726]
[1763638022119,7.04882637,141.87,141.86,1.66]
[1763638022740,9.78882769,141.86,141.85,1.66]
[1763638022943,13.13591495,141.86,141.82,8.59831388]
[1763638023156,0.67,141.85,141.84,1.66]
[1763638023728,9.78882769,141.86,141.84,1.66]
[1763638024034,10.45882769,141.86,141.84,1.66]
[1763638024229,10.45882769,141.86,141.84,4.33708726]
[1763638024658,17.50850267,141.86,141.84,4.33708726]
[1763638024963,16.83850267,141.86,141.84,4.99708726]
[1763638025168,7.0490403,141.87,141.84,4.99708726]
[1763638025336,7.7190403,141.87,141.84,4.99708726]
[1763638025548,7.7190403,141.87,141.85,2.67708726]
[1763638025750,7.7190403,141.87,141.81,31.85296474]
[1763638025751,0.67,141.86,141.81,31.85296474]
[1763638025992,7.71840376,141.88,141.84,2.67708726]
[1763638026274,7.71840376,141.88,141.85,1.66]
[1763638026275,0.67,141.87,141.85,1.66]
[1763638026482,7.71898712,141.87,141.85,1.66]
[1763638027868,7.04898712,141.87,141.85,1.66]
[1763638028050,7.04898712,141.87,141.82,27.08748759]
[1763638028051,3.34708726,141.86,141.84,1.66]
[1763638028249,0.67,141.86,141.84,1.66]
[1763638028466,0.67,141.85,141.84,1.66]
[1763638029259,0.67,141.85,141.82,2.67708726]
[1763638029591,17.50852807,141.85,141.84,1.66]
[1763638031382,17.50852807,141.85,141.82,2.67708726]
[1763638031562,17.50852807,141.85,141.83,1.66]
[1763638031885,0.67,141.84,141.83,1.66]
[1763638032087,16.83852807,141.85,141.83,1.66]
[1763638032088,17.50852807,141.85,141.83,1.66]
[1763638032260,16.83852807,141.85,141.83,1.66]
[1763638032464,0.67,141.84,141.83,1.66]
[1763638033771,0.67,141.84,141.82,2.67708726]
[1763638034077,17.50852807,141.85,141.83,1.66]
[1763638034373,7.04970038,141.85,141.83,4.33708726]
[1763638034551,7.71970038,141.85,141.83,4.33708726]
[1763638035662,7.04970038,141.85,141.83,4.33708726]
[1763638035865,17.50820861,141.86,141.83,4.99708726]
[1763638036077,10.45882769,141.89,141.85,2.67708726]
[1763638036255,10.45882769,141.89,141.87,2.67708726]
[1763638036578,17.50659698,141.89,141.87,2.67708726]
[1763638036751,7.04690576,141.91,141.88,4.83823229]
[1763638036955,33.55992914,141.98,141.86,1.66]
[1763638036956,7.04572676,141.93,141.89,1.68]
[1763638037249,7.04572676,141.93,141.88,1.68]
[1763638037250,9.78882769,141.89,141.88,1.68]
[1763638037450,13.96705998,141.89,141.88,1.68]
[1763638037671,14.63705998,141.89,141.88,1.68]
[1763638037873,21.68477299,141.89,141.86,1.68]
[1763638038075,0.67,141.88,141.86,1.68]
[1763638038654,9.78882769,141.87,141.85,1.68]
[1763638039184,0.67,141.86,141.85,1.68]
[1763638039785,10.76945891,141.88,141.85,5.85823229]
[1763638039987,7.71870656,141.87,141.85,5.85823229]
[1763638040166,7.71870656,141.87,141.85,1.68]
[1763638040971,7.04870656,141.87,141.85,1.68]
[1763638041476,7.72870656,141.87,141.85,1.68]
[1763638042285,7.70470656,141.87,141.85,1.68]
[1763638043684,0.68,141.86,141.85,1.68]
[1763638044069,7.70470656,141.87,141.85,1.68]
[1763638045088,0.68,141.86,141.83,5.92122662]
[1763638045391,9.78882769,141.85,141.84,1.68]
[1763638045766,10.46882769,141.85,141.84,1.68]
[1763638046994,6.70122662,141.86,141.84,1.68]
[1763638046995,16.83830991,141.86,141.84,1.68]
[1763638047194,17.51830991,141.86,141.84,1.68]
[1763638047377,16.83830991,141.86,141.84,5.85823229]
[1763638047892,7.04948222,141.86,141.84,6.53823229]
[1763638048079,7.04890497,141.87,141.84,6.53823229]
[1763638048696,7.72890497,141.87,141.84,6.53823229]
[1763638049889,7.72890497,141.87,141.84,5.85823229]
[1763638050900,7.72890497,141.87,141.84,6.53823229]
[1763638052304,20.70112126,141.87,141.84,6.53823229]
[1763638052477,20.70112126,141.87,141.84,1.68]
[1763638052478,0.68,141.86,141.84,1.68]
[1763638052990,7.04890497,141.87,141.84,6.50823229]
[1763638054588,7.70890497,141.87,141.84,6.50823229]
[1763638055297,7.70890497,141.87,141.84,5.85823229]
[1763638055494,7.70956082,141.86,141.84,1.68]
[1763638057106,0.66,141.85,141.82,11.22919916]
[1763638057277,0.66,141.85,141.83,5.85823229]
[1763638057278,7.70975426,141.85,141.83,5.85823229]
[1763638057480,7.04975426,141.85,141.83,5.85823229]
[1763638057880,7.70975426,141.85,141.83,1.68]
[1763638058081,7.70975426,141.85,141.83,5.85823229]
[1763638058375,7.04975426,141.85,141.83,5.85823229]
[1763638058780,7.04975426,141.85,141.83,1.68]
[1763638059279,7.70920344,141.86,141.83,1.68]
[1763638059700,7.70920344,141.86,141.83,5.85823229]
[1763638060486,7.70920344,141.86,141.83,6.50823229]
[1763638060688,7.70920344,141.86,141.83,4.82823229]
[1763638061003,7.70920344,141.86,141.84,1.68]
[1763638061981,7.70920344,141.86,141.84,5.85823229]
[1763638062184,7.04920344,141.86,141.84,5.85823229]
[1763638062382,7.70920344,141.86,141.84,1.68]
[1763638063193,7.04920344,141.86,141.84,1.68]
[1763638063479,7.70920344,141.86,141.84,5.85823229]
[1763638063783,17.49776369,141.87,141.84,6.50823229]
[1763638064608,16.83776369,141.87,141.84,5.85823229]
[1763638064815,0.66,141.86,141.84,5.85823229]
[1763638065191,0.66,141.86,141.82,5.92122662]
[1763638065394,4.17823229,141.84,141.81,0.1]
[1763638065587,0.66,141.84,141.81,2.43]
[1763638065796,0.66,141.84,141.81,1.78]
[1763638066005,0.66,141.84,141.81,11.87945891]
[1763638066210,7.71028788,141.84,141.82,4.17823229]
[1763638067096,0.66,141.84,141.81,15.40285198]
[1763638067302,28.22206469,141.85,141.82,4.82823229]
[1763638067505,21.17223614,141.85,141.82,0.65]
[1763638067705,0.66,141.85,141.82,0.65]
[1763638067899,0.66,141.85,141.83,4.17823229]
[1763638068099,0.66,141.85,141.84,1.68]
[1763638068310,7.70970038,141.85,141.84,1.68]
[1763638070090,7.70970038,141.85,141.83,1.68]
[1763638070289,10.46882769,141.84,141.83,1.68]
[1763638070490,20.6682866,141.84,141.83,1.68]
[1763638070706,24.84651889,141.84,141.81,0.1]
[1763638070906,9.78882769,141.82,141.81,0.1]
[1763638071421,9.78882769,141.83,141.81,0.1]
[1763638072315,9.78882769,141.83,141.81,4.27823229]
[1763638072617,16.8396403,141.83,141.81,4.27823229]
[1763638072806,17.5196403,141.83,141.81,4.27823229]
[1763638073112,17.5196403,141.83,141.81,0.1]
[1763638073814,0.68,141.82,141.81,0.1]
[1763638074515,16.8396403,141.83,141.81,4.27823229]
[1763638074717,7.05081261,141.83,141.81,4.95823229]
[1763638075330,7.05028705,141.84,141.82,4.17823229]
[1763638075514,7.73028705,141.84,141.82,4.17823229]
[1763638075910,0.68,141.83,141.81,0.1]
[1763638076121,0.68,141.83,141.81,4.27823229]
[1763638077338,7.73070622,141.83,141.81,4.27823229]
[1763638078134,7.73070622,141.83,141.81,0.1]
[1763638078339,7.73070622,141.83,141.81,4.27823229]
[1763638079139,7.73070622,141.83,141.81,0.1]
[1763638079344,7.73070622,141.83,141.81,4.27823229]
[1763638080526,7.05070622,141.83,141.81,6.63823229]
[1763638080727,10.46882769,141.85,141.82,4.17823229]
[1763638080728,7.05041597,141.84,141.82,4.17823229]
[1763638080932,7.0493724,141.86,141.83,4.17823229]
[1763638081124,7.0493724,141.86,141.84,5.85823229]
[1763638081532,0.68,141.86,141.84,5.85823229]
[1763638081718,0.68,141.86,141.84,4.17823229]
[1763638081926,13.96705998,141.85,141.81,4.27823229]
[1763638082219,13.96705998,141.85,141.81,0.1]
[1763638082436,0.68,141.84,141.81,0.1]
[1763638082842,0.68,141.84,141.81,4.27823229]
[1763638084045,7.05069449,141.83,141.81,0.1]
[1763638084420,7.73069449,141.83,141.81,1.78]
[1763638087723,7.05069449,141.83,141.81,1.78]
[1763638087926,0.68,141.82,141.81,0.1]
[1763638088149,11.90942394,141.82,141.81,0.1]
[1763638088540,7.73119165,141.82,141.81,0.1]
[1763638089257,11.90942394,141.82,141.81,0.1]
[1763638089439,7.05119165,141.82,141.81,0.1]
[1763638090358,16.83952218,141.83,141.81,0.1]
[1763638090542,17.51952218,141.83,141.81,0.1]
[1763638090738,0.68,141.82,141.81,0.1]
[1763638090961,17.51952218,141.83,141.81,0.1]
[1763638091255,7.73069449,141.83,141.81,0.1]
[1763638092358,7.05069449,141.83,141.81,0.1]
[1763638092558,7.73069449,141.83,141.81,0.1]
[1763638093268,7.05069449,141.83,141.81,4.27823229]
[1763638093966,17.62373328,141.86,141.82,4.17823229]
[1763638094263,7.0488214,141.87,141.83,2.36]
[1763638094567,7.7288214,141.87,141.84,4.17823229]
[1763638094767,7.7288214,141.87,141.84,4.85823229]
[1763638095244,7.7288214,141.87,141.84,4.17823229]
[1763638095565,7.0488214,141.87,141.84,4.85823229]
[1763638095744,7.7288214,141.87,141.84,4.85823229]
[1763638096750,7.7288214,141.87,141.84,3.35584532]
[1763638097565,7.0488214,141.87,141.84,3.35584532]
[1763638097871,7.72844001,141.88,141.85,3.35584532]
[1763638098054,7.72844001,141.88,141.85,2.67584532]
[1763638098250,7.04844001,141.88,141.85,2.67584532]
[1763638098474,0.68,141.87,141.84,3.35584532]
[1763638098647,0.68,141.87,141.84,2.67584532]
[1763638099273,0.68,141.87,141.83,2.36]
[1763638099451,0.68,141.87,141.84,2.67584532]
[1763638099657,0.68,141.87,141.84,3.35584532]
[1763638100153,0.68,141.87,141.81,6.69122662]
[1763638100354,7.0501974,141.84,141.81,0.1]
[1763638100550,7.0501974,141.84,141.81,2.77584532]
[1763638100961,7.7701974,141.84,141.81,3.44584532]
[1763638101347,0.72,141.84,141.81,3.44584532]
[1763638102975,7.77038939,141.84,141.81,3.44584532]
[1763638103362,7.77038939,141.84,141.82,2.67584532]
[1763638104272,0.72,141.83,141.81,2.77584532]
[1763638104452,7.76970038,141.85,141.81,3.44584532]
[1763638104654,0.72,141.84,141.81,2.77584532]
[1763638105161,0.72,141.84,141.82,2.67584532]
[1763638105358,7.77053186,141.84,141.82,2.67584532]
[1763638105765,0.72,141.83,141.82,2.67584532]
[1763638105967,7.05053186,141.84,141.82,2.67584532]
[1763638106279,0.72,141.83,141.81,0.1]
[1763638106454,0.72,141.83,141.81,2.77584532]
[1763638106649,0.72,141.83,141.81,0.1]
[1763638107280,7.05119165,141.82,141.81,0.1]
[1763638107458,7.05119165,141.82,141.81,1.78]
[1763638107657,7.05119165,141.82,141.81,0.1]
[1763638107658,7.77119165,141.82,141.81,0.1]
[1763638107889,7.77119165,141.82,141.81,1.78]
[1763638108886,7.76069449,141.83,141.81,1.78]
[1763638109776,7.05069449,141.83,141.81,1.78]
[1763638109967,0.71,141.82,141.81,1.78]
[1763638110651,7.76119165,141.82,141.81,1.78]
[1763638110856,7.76119165,141.82,141.81,0.1]
[1763638111673,20.30133883,141.84,141.81,0.1]
[1763638111674,7.05093515,141.83,141.81,0.1]
[1763638111972,7.76093515,141.83,141.81,0.1]
[1763638112174,7.05093515,141.83,141.81,0.1]
[1763638112366,0.71,141.82,141.81,0.1]
[1763638112853,7.76119165,141.82,141.81,0.1]
[1763638116067,20.22586466,141.82,141.81,0.1]
[1763638116768,7.05119165,141.82,141.81,0.1]
[1763638117568,7.76119165,141.82,141.81,0.1]
[1763638119478,7.05119165,141.82,141.81,0.1]
[1763638124480,5.49900938,141.85,141.81,0.1]
[1763638124681,0.71,141.85,141.82,2.67584532]
[1763638124982,0.71,141.84,141.82,2.67584532]
[1763638125182,7.75970038,141.85,141.82,2.67584532]
[1763638125386,0.71,141.84,141.82,2.67584532]
[1763638125792,7.04970038,141.85,141.82,2.67584532]
[1763638126097,0.71,141.84,141.82,2.67584532]
[1763638126504,7.76053678,141.84,141.82,2.67584532]
[1763638126999,7.76053678,141.84,141.81,3.45584532]
[1763638127490,0.71,141.83,141.81,0.1]
[1763638127687,7.05053678,141.84,141.82,1.68]
[1763638127885,7.76053678,141.84,141.82,1.68]
[1763638131197,7.76053678,141.84,141.81,3.45584532]
[1763638131404,7.76053678,141.84,141.82,1.68]
[1763638131702,7.76053678,141.84,141.81,3.45584532]
[1763638131890,7.76053678,141.84,141.82,1.68]
[1763638132898,7.76053678,141.84,141.82,4.35584532]
[1763638134887,7.76053678,141.84,141.82,1.68]
[1763638135190,7.05053678,141.84,141.82,1.68]
[1763638135391,7.74053678,141.84,141.82,1.68]
[1763638144000,12.97329942,141.86,141.83,3.37584532]
[1763638144191,31.08731451,141.95,141.83,3.37584532]
[1763638144192,9.78882769,141.87,141.83,3.37584532]
[1763638144394,0.69,141.86,141.83,0.7]
[1763638145726,0.69,141.86,141.82,10.97707194]
[1763638146331,7.04970038,141.85,141.82,5.05584532]
[1763638146633,7.04970038,141.85,141.82,4.35584532]
[1763638146835,7.73970038,141.85,141.82,5.05584532]
[1763638147942,7.04970038,141.85,141.82,4.35584532]
[1763638148108,20.2993749,141.86,141.82,4.35584532]
[1763638148109,7.74041455,141.84,141.82,4.35584532]
[1763638148409,7.74041455,141.84,141.83,1.68]
[1763638149458,7.74041455,141.84,141.81,0.8]
[1763638149643,7.74041455,141.84,141.83,1.68]
[1763638154050,10.41625987,141.84,141.82,1.68]
[1763638154257,0.69,141.83,141.82,1.68]
[1763638155229,7.74069449,141.83,141.82,1.68]
[1763638156059,7.05069449,141.83,141.82,1.68]
[1763638157940,7.01795509,141.83,141.82,1.68]
[1763638158459,0.69,141.83,141.82,1.68]
[1763638158659,0.69,141.83,141.81,0.1]
[1763638158866,4.18327455,141.82,141.81,0.1]
[1763638159027,4.87327455,141.82,141.81,0.1]
[1763638159228,0.69,141.82,141.81,0.1]
[1763638159470,4.87327455,141.82,141.81,0.1]
[1763638160949,11.9244662,141.82,141.81,0.1]
[1763638162551,7.74119165,141.82,141.81,0.1]
[1763638163243,7.050912,141.83,141.81,0.82]
[1763638163634,7.770912,141.83,141.81,0.1]
[1763638164046,7.050912,141.83,141.81,0.1]
[1763638164253,7.050912,141.83,141.81,0.82]
[1763638164449,7.050912,141.83,141.81,5.00327455]
[1763638164637,7.050912,141.83,141.82,1.68]
[1763638165153,7.04987527,141.85,141.82,6.58327455]
[1763638165357,11.23314982,141.85,141.83,0.72]
[1763638165742,7.04987527,141.85,141.83,0.72]
[1763638165941,11.23314982,141.85,141.83,0.72]
[1763638166145,11.23314982,141.85,141.82,2.4]
[1763638166336,11.95314982,141.85,141.82,2.4]
[1763638166530,7.04987527,141.85,141.82,1.68]
[1763638166850,11.23314982,141.85,141.83,0.72]
[1763638167057,11.95314982,141.85,141.82,2.4]
[1763638167354,4.18327455,141.84,141.82,2.4]
[1763638168154,4.90327455,141.84,141.82,1.68]
[1763638168360,4.18327455,141.84,141.82,2.4]
[1763638169143,11.95314982,141.85,141.82,2.4]
[1763638169955,7.76987527,141.85,141.82,2.4]
[1763638170255,11.95314982,141.85,141.82,2.4]
[1763638170431,11.23314982,141.85,141.82,2.4]
[1763638170633,11.91314982,141.85,141.82,2.4]
[1763638171132,4.18327455,141.84,141.82,2.4]
[1763638171763,7.72987527,141.85,141.82,2.4]
[1763638171952,4.18327455,141.84,141.82,2.4]
[1763638172958,7.72987527,141.85,141.82,2.4]
[1763638173461,11.91314982,141.85,141.82,2.4]
[1763638174956,4.18327455,141.84,141.82,0.72]
[1763638175255,4.18327455,141.84,141.83,1.66]
[1763638175963,4.86327455,141.84,141.83,1.66]
[1763638176545,4.18327455,141.84,141.83,1.66]
[1763638176746,4.86327455,141.84,141.83,1.66]
[1763638177152,11.91347195,141.84,141.82,1.66]
[1763638177358,4.86327455,141.83,141.81,1.76]
[1763638177548,4.18327455,141.82,141.81,1.76]
[1763638177736,4.86327455,141.82,141.81,1.76]
[1763638181342,11.9144662,141.82,141.81,1.76]
[1763638181660,11.9144662,141.82,141.81,0.1]
[1763638181864,11.9144662,141.82,141.81,1.76]
[1763638182054,11.2344662,141.82,141.81,1.76]
[1763638184063,11.9144662,141.82,141.81,1.76]
[1763638184570,11.23368588,141.84,141.81,2.48]
[1763638184769,11.91368588,141.84,141.81,2.48]
[1763638185071,11.91368588,141.84,141.81,7.68122662]
[1763638186049,11.91368588,141.84,141.81,8.40122662]
[1763638186248,11.23368588,141.84,141.82,0.72]
[1763638186952,11.23316171,141.85,141.82,0.72]
[1763638187168,11.91316171,141.85,141.82,0.72]
[1763638188483,11.91316171,141.85,141.81,18.91605807]
[1763638188484,11.23316171,141.85,141.81,19.63605807]
[1763638188673,11.91316171,141.85,141.81,19.63605807]
[1763638191189,11.91316171,141.85,141.82,5.92122662]
[1763638191492,11.91316171,141.85,141.82,6.63122662]
[1763638191661,11.91316171,141.85,141.83,1.66]
[1763638194092,11.23316171,141.85,141.83,1.66]
[1763638194293,7.74988716,141.85,141.83,1.66]
[1763638194474,11.93316171,141.85,141.83,1.66]
[1763638196878,11.23316171,141.85,141.83,1.66]
[1763638197190,11.93316171,141.85,141.83,1.66]
[1763638197572,13.68241379,141.84,141.83,1.66]
[1763638198100,4.18327455,141.85,141.83,2.37]
[1763638198333,17.86568834,141.85,141.83,1.66]
[1763638198469,17.86568834,141.85,141.83,2.37]
[1763638199879,17.86568834,141.85,141.83,8.29122662]
[1763638200085,17.86568834,141.85,141.83,7.58122662]
[1763638200274,17.53761422,141.87,141.83,14.63187427]
[1763638200479,17.53761422,141.87,141.83,15.34187427]
[1763638200480,4.88327455,141.86,141.83,15.34187427]
[1763638200888,0.7,141.85,141.83,14.63187427]
[1763638201874,7.04926395,141.86,141.83,14.63187427]
[1763638202089,17.78137952,141.87,141.84,0.71]
[1763638202090,12.87582638,141.87,141.84,0.71]
[1763638202289,0.7,141.86,141.84,0.71]
[1763638202495,4.88327455,141.86,141.85,1.66]
[1763638202994,4.88327455,141.86,141.83,5.92122662]
[1763638203299,4.18327455,141.85,141.82,13.68201693]
[1763638203604,11.23297493,141.85,141.84,1.66]
[1763638203811,26.27437356,141.85,141.84,1.66]
[1763638204415,26.97437356,141.85,141.84,1.66]
[1763638206209,0.7,141.85,141.84,1.66]
[1763638206408,28.17299328,141.86,141.84,1.66]
[1763638206611,28.87299328,141.86,141.84,1.66]
[1763638208318,4.18327455,141.87,141.85,0.71]
[1763638208690,17.15560669,141.87,141.85,0.71]
[1763638208919,4.88327455,141.87,141.84,2.37]
[1763638210195,11.93207519,141.87,141.84,2.37]
[1763638210518,11.2316441,141.88,141.85,0.71]
[1763638210705,11.9316441,141.88,141.85,0.71]
[1763638210907,4.18327455,141.88,141.85,0.71]
[1763638211108,7.74787288,141.89,141.85,0.71]
[1763638211310,11.93114743,141.89,141.85,0.71]
[1763638211526,4.88327455,141.89,141.85,4.89327455]
[1763638211711,30.9535954,141.9,141.86,4.18327455]
[1763638211712,26.04804226,141.9,141.86,4.18327455]
[1763638211913,0.7,141.89,141.87,1.66]
[1763638212413,11.23050236,141.9,141.87,1.66]
[1763638212620,0.7,141.9,141.87,1.66]
[1763638212916,4.88327455,141.89,141.85,27.08300844]
[1763638213120,4.18327455,141.88,141.86,1.66]
[1763638213341,4.88327455,141.88,141.86,1.66]
[1763638213926,4.88327455,141.88,141.85,6.63122662]
[1763638213927,4.88327455,141.88,141.87,1.66]
[1763638214528,11.9314843,141.88,141.87,1.66]
[1763638215418,7.04820975,141.88,141.87,1.66]
[1763638215936,7.74820975,141.88,141.87,1.66]
[1763638217359,11.9314843,141.88,141.87,1.66]
[1763638218632,11.2314843,141.88,141.87,1.66]
[1763638218833,30.88597083,141.9,141.87,2.37]
[1763638219024,7.04735178,141.9,141.87,5.04534439]
[1763638219220,7.74735178,141.9,141.87,5.04534439]
[1763638219526,10.42269617,141.9,141.87,2.37]
[1763638220549,7.74735178,141.9,141.87,2.37]
[1763638220868,15.66119003,141.91,141.87,11.38390534]
[1763638221062,7.72694803,141.91,141.88,0.68]
[1763638221265,7.04694803,141.91,141.88,0.68]
[1763638221562,0.68,141.9,141.87,9.38868545]
[1763638223145,9.72229242,141.91,141.87,9.38868545]
[1763638223361,10.40229242,141.91,141.87,9.38868545]
[1763638225047,3.35534439,141.9,141.88,1.66]
[1763638225451,0.68,141.89,141.88,1.66]
[1763638225753,3.35534439,141.89,141.88,1.66]
[1763638226149,0.68,141.89,141.88,1.66]
[1763638226445,2.67534439,141.9,141.86,7.72917445]
[1763638226646,3.35534439,141.9,141.87,2.34]
[1763638226825,24.27543203,141.91,141.87,5.01534439]
[1763638227023,7.04630757,141.92,141.88,10.40355414]
[1763638227251,7.04630757,141.92,141.88,7.72820975]
[1763638227252,0.68,141.91,141.88,7.72820975]
[1763638227422,0.68,141.91,141.89,1.66]
[1763638230157,10.4020912,141.91,141.89,1.66]
[1763638230455,7.72674681,141.91,141.87,7.04863572]
[1763638230754,0.68,141.9,141.88,1.66]
[1763638231138,10.40274593,141.9,141.86,23.16738161]
[1763638231327,10.40274593,141.9,141.87,1.66]
[1763638231529,2.67534439,141.89,141.87,1.66]
[1763638231856,2.67534439,141.89,141.87,2.34]
[1763638232359,3.37534439,141.88,141.85,5.93889761]
[1763638232651,3.37534439,141.88,141.84,39.28274182]
[1763638232652,2.67534439,141.87,141.86,1.66]
[1763638232840,3.37534439,141.87,141.86,1.66]
[1763638235151,10.42405095,141.87,141.86,1.66]
[1763638236347,26.08535521,141.88,141.86,1.66]
[1763638236658,10.42371167,141.88,141.86,1.66]
[1763638237252,24.97685128,141.88,141.86,1.66]
[1763638238852,24.27685128,141.88,141.86,1.66]
[1763638239162,24.97685128,141.88,141.86,1.66]
[1763638240163,22.30150689,141.88,141.86,1.66]
[1763638240361,3.37534439,141.88,141.86,1.66]
[1763638240664,20.79873061,141.89,141.86,2.31]
[1763638240861,20.09873061,141.89,141.86,1.66]
[1763638241042,13.7508811,141.89,141.86,2.31]
[1763638241242,20.79862289,141.89,141.86,1.66]
[1763638241453,20.09862289,141.89,141.86,1.66]
[1763638241635,3.37534439,141.88,141.86,1.66]
[1763638242137,10.42366525,141.88,141.85,0.65]
[1763638242338,10.42366525,141.88,141.86,1.66]
[1763638242539,7.74832086,141.88,141.86,1.66]
[1763638244458,20.79882822,141.89,141.86,2.31]
[1763638244763,20.09882822,141.89,141.86,1.66]
[1763638244952,0.7,141.88,141.86,1.66]
[1763638246170,17.42348383,141.89,141.86,1.66]
[1763638246353,18.12348383,141.89,141.86,1.66]
[1763638246661,18.12348383,141.89,141.86,2.31]
[1763638246867,20.79882822,141.89,141.86,2.31]
[1763638247373,18.12348383,141.89,141.86,4.98534439]
[1763638248170,18.12348383,141.89,141.86,2.31]
[1763638248378,18.12348383,141.89,141.86,4.98534439]
[1763638249472,18.12348383,141.89,141.86,2.31]
[1763638250655,0.69,141.88,141.86,1.66]
[1763638254578,7.73821878,141.88,141.86,1.66]
[1763638254777,0.69,141.88,141.86,1.66]
[1763638255353,10.412763,141.9,141.87,0.7]
[1763638255578,0.69,141.89,141.86,18.02342511]
[1763638255881,7.73741861,141.9,141.87,0.7]
[1763638256257,0.69,141.9,141.87,3.37534439]
[1763638256460,0.69,141.89,141.86,18.02342511]
[1763638258986,10.41206414,141.91,141.87,3.37534439]
[1763638259285,10.41206414,141.91,141.88,1.66]
[1763638259456,0.69,141.9,141.88,1.66]
[1763638260492,7.73726161,141.9,141.88,1.66]
[1763638261479,7.04726161,141.9,141.88,1.66]
[1763638261778,0.69,141.89,141.88,1.66]
[1763638263400,2.67534439,141.9,141.88,1.66]
[1763638263682,16.83412361,141.94,141.88,7.59889761]
[1763638263890,0.69,141.92,141.89,3.37534439]
[1763638264066,0.69,141.92,141.9,1.66]
[1763638264889,10.41160941,141.92,141.9,1.66]
[1763638265087,3.36534439,141.92,141.9,1.66]
[1763638265386,3.36534439,141.91,141.9,1.66]
[1763638266074,3.36534439,141.91,141.88,12.98696464]
[1763638266270,3.36534439,141.91,141.89,1.66]
[1763638267696,3.36534439,141.91,141.88,13.68696464]
[1763638267997,3.36534439,141.91,141.89,1.66]
[1763638268495,7.73679122,141.91,141.89,1.66]
[1763638268694,10.41213561,141.91,141.89,1.66]
[1763638269380,9.72213561,141.91,141.89,1.66]
[1763638269706,13.15417208,141.9,141.86,5.93889761]
[1763638269911,2.67534439,141.87,141.85,1.66]
[1763638270211,2.67534439,141.86,141.85,1.66]
[1763638270705,10.41454783,141.86,141.85,1.66]
[1763638270910,3.36534439,141.86,141.85,1.66]
[1763638271280,10.41454783,141.86,141.85,1.66]
[1763638271705,3.36534439,141.86,141.85,1.66]
[1763638274307,3.36534439,141.86,141.83,25.17157681]
[1763638274508,3.36534439,141.86,141.84,1.66]
[1763638275514,10.41457019,141.86,141.84,1.66]
[1763638275805,3.36534439,141.86,141.84,1.66]
[1763638278913,4.87227948,141.86,141.84,1.66]
[1763638284114,0.69,141.85,141.84,1.66]
[1763638284301,4.87227948,141.86,141.84,1.66]
[1763638284502,4.87227948,141.86,141.83,31.81047442]
[1763638284700,4.87227948,141.86,141.84,1.66]
[1763638287330,0.69,141.86,141.84,8.71016823]
[1763638287923,0.69,141.86,141.84,9.42016823]